Cogmind - Beta 14 @@@ ROGUE MODE // 2024.09.07 @ 19:13:17 Player: Gatamar Result: Destroyed by L-31 Rogue with Katana Performance ------------- Evolutions (0) 0 Regions Visited (4) 800 Robots Destroyed (17) 85 Value Destroyed (517) 517 Prototype IDs (23) 460 Alien Tech Used (0) 0 Bonus (300) 300 TOTAL SCORE: 2162 Bonus ------- Aligned with FarCom 300 Cogmind --------- Core Integrity 0/250 Matter 299/300 Energy 250/250 System Corruption 0% Temperature Warm (127) Movement Walking (260) Ox2 Location -9/Mines Parts ------- > --- POWER (1) -------- Ion Engine > --- PROPULSION (2) --- Aluminum Leg Aluminum Leg > --- UTILITY (2) ------ High-capacity Storage Unit > --- WEAPON (2) ------- Particle Gun > --- INVENTORY (20) --- Light Ion Engine Aluminum Leg Aluminum Leg Disposable Heat Sink Disposable Heat Sink Large Storage Unit Medium Battery (150) Superbattery (1500) Visual Processing Unit Sensor Array Signal Interpreter Transport Network Coupler Targeting Computer Medium Armor Plating Field Recycling Unit (0) Small Laser Spread Laser Mini Grenade Launcher Mining Laser Peak State ------------ > --- POWER ------------ Light Nuclear Core > --- PROPULSION ------- Aluminum Leg Aluminum Leg > --- UTILITY ---------- Large Storage Unit Field Recycling Unit > --- WEAPON ----------- Particle Gun Beam Cannon > --- INVENTORY -------- Aluminum Leg Aluminum Leg Transport Network Coupler Small Laser [Rating: 11] Favorites ----------- Power Ion Engine Engine Ion Engine Power Core Light Nuclear Core Propulsion Aluminum Leg Treads Light Treads Leg Aluminum Leg Utility High-capacity Storage Unit Device Heat Sink Storage High-capacity Storage Unit Protection Light Armor Plating Weapon Particle Gun Energy Gun Particle Gun Energy Cannon Beam Cannon Ballistic Gun Assault Rifle Build | -11 -10 -10 -10 -9 ------- Run | Yrd Mat Min Exi Min Slots Evolved . | . . . . . Power . | . . . . . Propulsion . | . . . . . Utility . | . . . . . Weapon . | . . . . . Parts Attached 26 | 7 17 . 2 . Power 3 | 1 2 . . . Engine 2 | 1 1 . . . Core 1 | . 1 . . . Reactor . | . . . . . Propulsion 7 | 2 3 . 2 . Treads 3 | 2 1 . . . Leg 4 | . 2 . 2 . Wheel . | . . . . . Hover . | . . . . . Flight . | . . . . . Utility 7 | 1 6 . . . Device 3 | . 3 . . . Storage 3 | 1 2 . . . Processor . | . . . . . Hackware . | . . . . . Protection 1 | . 1 . . . Artifact . | . . . . . Weapon 9 | 3 6 . . . Energy Gun 7 | 2 5 . . . Energy Cannon 1 | . 1 . . . Ballistic Gun 1 | 1 . . . . Ballistic Cannon . | . . . . . Launcher . | . . . . . Special Weapon . | . . . . . Impact Weapon . | . . . . . Slashing Weapon . | . . . . . Piercing Weapon . | . . . . . Special Melee Weapon . | . . . . . Unidentified Prototypes . | . . . . . Parts Lost 11 | . 9 . . 2 Power 2 | . 2 . . . Propulsion 1 | . 1 . . . Utility 3 | . 2 . . 1 Weapon 5 | . 4 . . 1 Highest Loss Streak 4 | . 4 . . 2 To Critical Strikes . | . . . . . Average Slot Usage (%) 98 | . 96 100 100 99 Engine 11 | . 9 14 14 14 Core 1 | . 3 . . . Treads 3 | . 8 . . . Leg 24 | . 18 28 28 28 Device 12 | . 11 14 14 14 Storage 13 | . 12 14 14 14 Protection 1 | . 2 . . . Energy Gun 14 | . 16 14 14 14 Energy Cannon 11 | . 7 14 14 13 Ballistic Gun 1 | . 4 . . . Peak Build Rating 11 | 6 11 9 10 11 Average Rating 9 | 4 9 9 9 10 On Entrance 6 | . 6 9 9 10 Naked Turns . | . . . . . Heaviest Build 59 | 12 59 52 52 52 Greatest Support 40 | 40 40 20 20 20 Greatest Overweight (x) 2 | . 2 2 2 2 Average Overweight (x) 1 | . . 2 2 2 Largest Inventory Capacity 20 | 8 20 20 20 20 Average Capacity 16 | 6 12 20 20 20 Most Carried 19 | 4 14 14 15 19 Average Carried 11 | 2 7 14 14 17 Final Capacity 20 | 8 20 20 20 20 Final Carried 19 | 4 14 14 15 19 Class Distribution -------------------- 94% | Mutant 5% | Scavenger-Mutant Dominant Class ---------------- Mutant | -10/Materials Mutant | -10/Mines Mutant | -10/Exiles Scavenger-Mutant | -9/Mines Resources | -11 -10 -10 -10 -9 ----------- Run | Yrd Mat Min Exi Min Matter Collected 595 | 213 351 . . 31 Remotely . | . . . . . Salvage Created 643 | . 643 . . . Parts 35 | . 35 . . . Haulers Intercepted . | . . . . . Recyclers Shooed . | . . . . . Parts Field Recycled . | . . . . . Retrieved Matter . | . . . . . Parts Self-Destructed . | . . . . . Prevented . | . . . . . Kills | -11 -10 -10 -10 -9 ------- Run | Yrd Mat Min Exi Min Combat Hostiles Destroyed 12 | . 12 . . . Guns 9 | . 9 . . . Cannons 3 | . 3 . . . Classes Destroyed 4 | . 4 . . . Worker 2 | . 2 . . . Operator 1 | . 1 . . . Watcher 2 | . 2 . . . Grunt 12 | . 12 . . . Best Kill Streak 8 | . 8 . . . Combat Bots Only 6 | . 6 . . . Max Kills in Single Turn 2 | . 2 . . . Gunslinging . | . . . . . Exploded . | . . . . . Melee . | . . . . . Uniques/NPCs Destroyed . | . . . . . Combat | -11 -10 -10 -10 -9 -------- Run | Yrd Mat Min Exi Min Hostile Shots Fired 119 | . 107 . . 12 Missed 28 | . 25 . . 3 Damage Taken 1326 | . 1140 . . 186 Core 278 | . 219 . . 59 Absorbed by Shields . | . . . . . Core Remaining (%) 100 | 100 . . . . Volleys Fired 85 | . 79 . . 6 Largest 2 | . 2 . . 2 Hottest 125 | . 125 . . 125 Shots Fired 150 | . 143 . . 7 Gun 130 | . 124 . . 6 Cannon 20 | . 19 . . 1 Launcher . | . . . . . Special . | . . . . . Kinetic 37 | . 37 . . . Thermal 75 | . 68 . . 7 Explosive . | . . . . . Electromagnetic 38 | . 38 . . . Robot Hit Streak 8 | . 8 . . 2 Robot Miss Streak 3 | . 3 . . 2 Penetration Max . | . . . . . Secondary Targets 1 | . 1 . . . Max Gunslinging Chain 1 | . 1 . . . Shots Hit Robots 85 | . 81 . . 4 Core Hits 31 | . 31 . . . Critical Kills . | . . . . . Critical Parts Destroyed . | . . . . . Critical Strikes . | . . . . . Melee Attacks . | . . . . . Impact . | . . . . . Slashing . | . . . . . Piercing . | . . . . . Sneak Attacks . | . . . . . Combat Hostiles . | . . . . . Follow-up Attacks . | . . . . . Damage Inflicted 1171 | . 1088 1 . 82 Guns 935 | . 871 . . 64 Cannons 194 | . 176 . . 18 Explosions 41 | . 41 . . . Melee . | . . . . . Ramming 1 | . . 1 . . Kinetic 236 | . 236 . . . Thermal 635 | . 553 . . 82 Explosive . | . . . . . Electromagnetic 299 | . 299 . . . Impact . | . . . . . Slashing . | . . . . . Piercing . | . . . . . Highest Corruption . | . . . . . Average Corruption . | . . . . . Corruption Purged . | . . . . . Corruption Blocked . | . . . . . Overload Shots . | . . . . . Overflow Damage 25 | . 25 . . . Projectiles 14 | . 14 . . . Explosions 11 | . 11 . . . Melee . | . . . . . Knockbacks . | . . . . . Impact . | . . . . . Kinetic . | . . . . . Secondary . | . . . . . Self-Inflicted Damage . | . . . . . Shots . | . . . . . Rammed . | . . . . . Targets Rammed 1 | . . 1 . . Kicked 1 | . . 1 . . Crushed . | . . . . . Highest Temperature 650 | . 650 . . 121 Average Temperature 197 | . 202 . . 55 Received Heat Transfer 669 | . 639 . . 30 Effects 26 | . 26 . . . Shutdowns 4 | . 4 . . . Energy Bleed 3 | . 3 . . . Interference 4 | . 4 . . . Matter Decay 2 | . 2 . . . Short Circuit 1 | . 1 . . . Damage (minor) 3 | . 3 . . . Damage (major) 6 | . 6 . . . Damage (core) 3 | . 3 . . . Siege Activations . | . . . . . Robots Corrupted . | . . . . . Combat Hostiles . | . . . . . Parts Fried 1 | . 1 . . . Impact Corruptions . | . . . . . Robots Melted . | . . . . . Combat Hostiles . | . . . . . Parts Melted 2 | . 2 . . . Heat Transferred 1377 | . 1192 . . 185 Parts Sabotaged . | . . . . . Parts Stolen . | . . . . . Parts Stripped . | . . . . . Power Chain Reactions 1 | . 1 . . . Alert | -11 -10 -10 -10 -9 ------- Run | Yrd Mat Min Exi Min Peak Influence 218 | . 218 . . . Initial . | . . . . . Average 32 | . 46 . . . Maximum Alert Level 1 | . 1 . . . Low Security (%) 99 | 100 99 100 . 100 Level 1 . | . . . . . Level 2 . | . . . . . Level 3 . | . . . . . Level 4 . | . . . . . Level 5 . | . . . . . High Security . | . . . . . Max Security . | . . . . . Squads Dispatched 2 | . 2 . . . Investigation . | . . . . . Extermination . | . . . . . Reinforcement 2 | . 2 . . . Assault . | . . . . . Garrison . | . . . . . Intercept . | . . . . . Searches Triggered . | . . . . . Construction Impeded . | . . . . . Haulers Reinforced . | . . . . . Active Scanning Responses . | . . . . . Cargo Convoy Interrupts . | . . . . . Stealth | -11 -10 -10 -10 -9 --------- Run | Yrd Mat Min Exi Min Distress Signals 1 | . 1 . . . Communications Jammed . | . . . . . Distress Signals . | . . . . . Times Spotted 25 | . 22 . . 3 Peak Tracking Total 5 | . 5 . . 3 Tactical Retreats 1 | . 1 . . . Traps | -11 -10 -10 -10 -9 ------- Run | Yrd Mat Min Exi Min Traps Triggered 1 | . 1 . . . Indirectly . | . . . . . Trap Hack Attempts . | . . . . . Triggered . | . . . . . Disarmed . | . . . . . Reprogrammed . | . . . . . Reused . | . . . . . Traps Extracted . | . . . . . Installed . | . . . . . Triggered . | . . . . . Machines | -11 -10 -10 -10 -9 ---------- Run | Yrd Mat Min Exi Min Machines Disabled 2 | . 2 . . . Max in Single Turn 1 | . 1 . . . Machines Repaired . | . . . . . Machines Dismantled . | . . . . . Machines Sabotaged . | . . . . . Overloaded Fab Kills . | . . . . . Hacking | -11 -10 -10 -10 -9 --------- Run | Yrd Mat Min Exi Min Machines Accessed 5 | . 4 . 1 . Terminals 4 | . 4 . . . Fabricators . | . . . . . Repair Stations . | . . . . . Recycling Units . | . . . . . Scanalyzers . | . . . . . Garrison Access . | . . . . . Total Hacks 7 | . 6 . 1 . Successful 4 | . 3 . 1 . Failed 3 | . 3 . . . Catastrophic 2 | . 2 . . . Database Lockouts . | . . . . . Manual 1 | . . . 1 . Terminals 6 | . 6 . . . Fabricators . | . . . . . Repair Stations . | . . . . . Recycling Units . | . . . . . Scanalyzers . | . . . . . Garrison Access . | . . . . . Terminal Hacks 4 | . 3 . 1 . Emergency Access Points 1 | . 1 . . . Alert Level 1 | . 1 . . . Unreport Threat 1 | . 1 . . . Derelict Proto ID Bank 1 | . . . 1 . Fabricator Hacks . | . . . . . Repair Station Hacks . | . . . . . Recycling Unit Hacks . | . . . . . Scanalyzer . | . . . . . Garrison Access Hacks . | . . . . . Unauthorized Hacks . | . . . . . Terminals . | . . . . . Fabricators . | . . . . . Repair Stations . | . . . . . Recycling Units . | . . . . . Scanalyzers . | . . . . . Garrison Access . | . . . . . Data Cores Recovered 1 | . 1 . . . Used . | . . . . . Hacking Detections 3 | . 3 . . . Full Trace Events . | . . . . . Feedback Events . | . . . . . Feedback Blocked . | . . . . . Robot Schematics Acquired . | . . . . . Robots Built . | . . . . . Authchips . | . . . . . Time . | . . . . . Total Robot Build Rating . | . . . . . Part Schematics Acquired . | . . . . . Parts Built . | . . . . . Authchips . | . . . . . Time . | . . . . . Total Part Build Rating . | . . . . . Parts Repaired . | . . . . . Time . | . . . . . Parts Recycled . | . . . . . Recycled Matter . | . . . . . Retrieved Matter . | . . . . . Retrieved Components . | . . . . . Parts Scanalyzed . | . . . . . Part Schematics Acquired . | . . . . . Parts Damaged . | . . . . . Bothacking | -11 -10 -10 -10 -9 ------------ Run | Yrd Mat Min Exi Min Used RIF Installer . | . . . . . Robots Hacked . | . . . . . Non-combat . | . . . . . Combat . | . . . . . Robot Hacks Applied . | . . . . . Relay Couplers Released . | . . . . . Fabnet Peak Effective % . | . . . . . Robots Rewired . | . . . . . Allies Hacked . | . . . . . Hacks Repelled . | . . . . . Allies | -11 -10 -10 -10 -9 -------- Run | Yrd Mat Min Exi Min Total Allies . | . . . . . Largest Group . | . . . . . Highest-Rated Group . | . . . . . Highest-Rated Ally . | . . . . . Total Orders . | . . . . . Ally Attacks . | . . . . . Total Damage . | . . . . . Kills . | . . . . . Allies Corrupted . | . . . . . Allies Melted . | . . . . . Intel | -11 -10 -10 -10 -9 ------- Run | Yrd Mat Min Exi Min Robot Analysis Total . | . . . . . Derelict Logs Recovered 1 | . . 1 . . Drone Launches . | . . . . . Drone Recoveries . | . . . . . Exploration | -11 -10 -10 -10 -9 ------------- Run | Yrd Mat Min Exi Min Turns Passed 2965 | 109 1231 241 1211 173 Spaces Moved 1178 | 63 500 92 463 60 Core 11 | 11 . . . . Treads 212 | 52 160 . . . Legs 955 | . 340 92 463 60 Wheels . | . . . . . Hover . | . . . . . Flight . | . . . . . Fastest Speed 50 | 50 120 260 260 260 Average Speed 221 | 140 184 260 260 260 Slowest Speed 260 | 160 260 260 260 260 Overloaded Moves . | . . . . . Propulsion Burnouts . | . . . . . Robots Hopped . | . . . . . Cave-ins Triggered . | . . . . . Exploration Rate (%) 35 | 5 60 14 81 17 Regions Visited 4 Branch Regions 3 Pre-discovered Areas . | . . . . . Known Exits Taken . | . . . . . Unknown Exits Taken 4 | 1 1 1 1 . Scrap Searched 1 | . . . . 1 Spaces Dug . | . . . . . Terrain Destroyed 2 | . 2 . . . Melee . | . . . . . Projectile . | . . . . . AOE 2 | . 2 . . . Terrain Rammed . | . . . . . Walls Destroyed . | . . . . . Machines Disabled . | . . . . . Actions | -11 -10 -10 -10 -9 --------- Run | Yrd Mat Min Exi Min Total 1381 | 84 664 93 470 70 Wait 50 | 4 42 1 3 . Move 1174 | 62 499 91 462 60 Hop . | . . . . . Pick Up 39 | 10 24 . 1 4 Fast Attach . | . . . . . Attach 19 | 7 12 . . . Detach 2 | 1 1 . . . Swap 7 | . 5 . 2 . Drop 2 | . 2 . . . Fire 85 | . 79 . . 6 Melee . | . . . . . Ram . | . . . . . Kick 1 | . . 1 . . Crush . | . . . . . Escape Stasis . | . . . . . Rewire 2 | . . . 2 . Trap . | . . . . . Miscellaneous . | . . . . . Route ------- -11/Scrapyard -10/Materials -10/Mines -10/Exiles -9/Mines (discovered 1 exit: [*Mat]) History --------- Turn | Location | Event 2 | -11/Scrapyard | Met Revision 17 2 | -11/Scrapyard | Discovered new exit (range 16) 110 | -11/Scrapyard | Entered Materials 317 | -10/Materials | Build established: Mutant 429 | -10/Materials | Discovered new exit (range 8) 527 | -10/Materials | Lost 4 parts (1n3w) 682 | -10/Materials | Lost 4 parts (1p2u1w) 702 | -10/Materials | Core integrity fell below 50% 711 | -10/Materials | Core integrity fell below 20% 1341 | -10/Materials | Entered Mines 1383 | -10/Mines | Deemed a non-threat by the Exiles lab entrance 1383 | -10/Mines | Discovered new exit (range 5) 1461 | -10/Mines | Learned 2 Materials zone layouts 1470 | -10/Mines | Assembled infested the area 1531 | -10/Mines | Met 8R-AWN 1582 | -10/Mines | Entered Exiles 1619 | -10/Exiles | Discovered new exit (range 15) 1684 | -10/Exiles | Welcomed by 8R-AWN 1725 | -10/Exiles | Met EX-HEX 1870 | -10/Exiles | Met EX-BIN 1909 | -10/Exiles | Aligned with FarCom system 1912 | -10/Exiles | Given EX-Vault access code 1972 | -10/Exiles | Opened EX-Vault 1993 | -10/Exiles | Found Superbattery 2046 | -10/Exiles | Warned to stay clear of 0b10 Research branches 2124 | -10/Exiles | Met EX-DEC 2216 | -10/Exiles | Visited The Gauntlet 2701 | -10/Exiles | Learned about 8R-AWN's background 2793 | -10/Exiles | Left Exiles lab with Superbattery 2793 | -10/Exiles | Entered Mines 2923 | -9/Mines | Discovered new exit (range 13) 2966 | -9/Mines | Destroyed by L-31 Rogue with Katana Last Messages --------------- I'm on board with that. LOCATION=UNKNOWN GOAL=ESCAPE 02793_ Receiving FarCom transmissions... 02799_ Acquired Med. Armor Plating. 02813_ Acquired Spread Laser. 02923_ Searching scrap... 02923_ Found Targeting Computer. 02923_ Found Particle Gun. 02923_ Found Mni. Grenade Launcher. 02923_ Found Spread Laser. 02923_ Found 31 Matter. 02923_ EXIT=FOUND 02924_ Acquired 31 matter. 02928_ Acquired Targeting Computer. 02932_ Acquired Mni. Grenade Launcher. 02944_ L-31 Rogue: "SECOND INTRUDER APPROACHING. ELIMINATE." 02956_ Beam Cannon destroyed. 02961_ Heat Sink destroyed. Map ----- +----------------------------------------------------+ | ???????????????????????????????????? | | ???????????????????????????????????? | | ???????????????????????????????????? | | ???????????????????????????????????? | | ???????????????????????????????????? | | ???????????????????????????????????? | | ???????????????????????????????????? | | ???????????????????????????? ?????? | | ???????????????????????????? #????? | | ???????????????????????????? #????? | | ???????????????????????????? #????? | | ???????????????????????????? #????? | | ???????????????????????????? #????? | | ???????????????????????????# #????? | | ?????????????????????????## #????? | | ?????????????????????????# ????? | | ??????????????????????????